fUSD/lending_fUSD_20251225
["ID","MTS","AMOUNT","RATE_DAILY","PERIOD"]
[399738573,1766646642695,-524.26514358,0.00013698,2]
[399738574,1766646642705,-500.0,0.00013698,2]
[399738575,1766646642715,-500.93767217,0.00013698,2]
[399738576,1766646642725,-414.70631063,0.00013698,2]
[399738577,1766646642736,-13773.56,0.00013699,2]
[399738578,1766646642746,-613.33,0.00013699,2]
[399738579,1766646642757,-14920.2591147,0.00013719,2]
[399738580,1766646642767,-500.0,0.00013862,2]
[399738581,1766646642777,-500.0,0.00013862,2]
[399738582,1766646642787,-825.23,0.00013862,2]
[399738583,1766646642797,-500.0,0.00013862,2]
[399738584,1766646642808,-500.0,0.00013862,2]
[399738585,1766646642818,-500.0,0.00013862,2]
[399738586,1766646642829,-500.0,0.00013862,2]
[399738587,1766646642839,-407.20578613,0.00013862,2]
[399738588,1766646642850,-534.14774107,0.00013862,2]
[399738589,1766646642861,-695.14,0.00013862,2]
[399738590,1766646642871,-500.0,0.00013862,2]
[399738591,1766646642882,-827.76,0.00013862,2]
[399738592,1766646642892,-500.0,0.00013862,2]
[399738593,1766646642902,-1698.19,0.00013866,2]
[399738594,1766646642912,-3086.09060362,0.00013901,2]
[399738595,1766646642923,-200.0,0.00013998,2]
[399738596,1766646642934,-500.0,0.00013998,2]
[399738597,1766646642945,-200.0,0.00013998,2]
[399738598,1766646642955,-250.0,0.00014019,2]
[399738599,1766646642965,-823.0,0.00014094,2]
[399738600,1766646642976,-823.0,0.00014094,2]
[399738601,1766646642986,-736.0,0.00014104,2]
[399738602,1766646642997,-33135.16061473,0.00014104,2]
[399738603,1766646643007,-3292.0,0.0001412,2]
[399738604,1766646643018,-1698.19,0.0001414,2]
[399738605,1766646643029,-183.21,0.00014181,2]
[399738606,1766646643040,-1023.0,0.0001422,2]
[399738607,1766646643051,-500.0,0.00014238,2]
[399738608,1766646643062,-500.0,0.00014238,2]
[399738609,1766646643073,-1698.19,0.00014414,2]
[399738610,1766646643084,-10000.0,0.0001451,2]
[399738611,1766646643096,-200.0,0.00014546,2]
[399738612,1766646643107,-500.0,0.00014546,2]
[399738613,1766646643118,-200.0,0.00014546,2]
[399738614,1766646643130,-1842.41014948,0.00014593,2]
[399738615,1766646643140,-151.0,0.00014663,2]
[399738616,1766646643151,-151.0,0.00014669,2]
[399738617,1766646643161,-151.0,0.00014673,2]
[399738618,1766646643172,-346.92554585,0.00014686,2]
[399738619,1766646643184,-298.26089446,0.00014686,2]
[399738620,1766646643194,-1698.19,0.00014688,2]
[399738621,1766646643205,-3460.15864286,0.00014703,2]
[399738622,1766646643215,-398.62325351,0.00014776,2]
[399738623,1766646643226,-33135.16061473,0.00014803,2]
[399738624,1766646643238,-1698.19,0.00014962,2]
[399738625,1766646643248,-600.0,0.00015038,2]
[399738626,1766646643258,-600.0,0.00015038,2]
[399738627,1766646643269,-835.14806971,0.00015045,2]
[399738628,1766646643279,-500.0,0.00015069,2]
[399738629,1766646643289,-500.0,0.00015069,2]
[399738630,1766646643299,-825.23,0.00015069,2]
[399738631,1766646643313,-500.0,0.00015069,2]
[399738632,1766646643323,-500.0,0.00015069,2]
[399738633,1766646643334,-500.0,0.00015069,2]
[399738634,1766646643344,-500.0,0.00015069,2]
[399738635,1766646643355,-695.14,0.00015069,2]
[399738636,1766646643366,-500.0,0.00015069,2]
[399738637,1766646643376,-827.76,0.00015069,2]
[399738638,1766646643386,-500.0,0.00015069,2]
[399738639,1766646643397,-200.0,0.00015094,2]
[399738640,1766646643407,-500.0,0.00015094,2]
[399738641,1766646643418,-200.0,0.00015094,2]
[399738642,1766646643428,-3460.15864281,0.00015142,2]
[399738643,1766646643438,-521.79,0.00015145,2]
[399738644,1766646643448,-610.34,0.00015145,2]
[399738645,1766646643458,-500.0,0.00015145,2]
[399738646,1766646643469,-500.0,0.00015145,2]
[399738647,1766646643479,-1698.19,0.00015236,2]
[399738648,1766646643493,-150.0,0.00015288,2]
[399738649,1766646643503,-172.12623375,0.00015288,2]
[399738650,1766646643517,-207.98052348,0.00015288,2]
[399738651,1766646643527,-150.0,0.00015288,2]
[399738652,1766646643537,-150.0,0.00015288,2]
[399738653,1766646643547,-150.0,0.00015288,2]
[399738654,1766646643557,-299.35190735,0.00015288,2]
[399738655,1766646643567,-150.03943629,0.00015288,2]
[399738656,1766646643577,-150.0,0.00015288,2]
[399738657,1766646643588,-150.0,0.00015288,2]
[399738658,1766646643599,-150.0,0.00015288,2]
[399738659,1766646643609,-150.0,0.00015288,2]
[399738660,1766646643620,-150.0,0.00015288,2]
[399738661,1766646643631,-150.0,0.00015288,2]
[399738662,1766646643641,-191.79160584,0.00015288,2]
[399738663,1766646643651,-150.0,0.00015288,2]
[399738664,1766646643661,-150.0,0.00015288,2]
[399738665,1766646643671,-172.12623375,0.00015305,2]
[399738666,1766646643682,-207.98052348,0.00015305,2]
[399738667,1766646643692,-299.35190735,0.00015305,2]
[399738668,1766646643702,-150.03943629,0.00015305,2]
[399738669,1766646643713,-150.0,0.00015306,2]
[399738670,1766646643723,-150.0,0.00015312,2]
[399738671,1766646643733,-150.0,0.00015312,2]
[399738672,1766646643743,-172.12623375,0.00015322,2]
[399738673,1766646643753,-207.98052348,0.00015322,2]
[399738674,1766646643763,-299.35190735,0.00015322,2]
[399738675,1766646643773,-150.03943629,0.00015322,2]
[399738676,1766646643784,-150.0,0.00015324,2]
[399738677,1766646643794,-150.0,0.0001533,2]
[399738678,1766646643804,-500.0,0.0001533,2]
[399738679,1766646643814,-1109.00444245,0.0001533,2]
[399738680,1766646643824,-150.0,0.00015336,2]
[399738681,1766646643834,-150.0,0.00015336,2]
[399738682,1766646643844,-172.12623375,0.00015339,2]
[399738683,1766646643855,-207.98052348,0.00015339,2]
[399738684,1766646643866,-299.35190735,0.00015339,2]
[399738685,1766646643879,-150.03943629,0.00015339,2]
[399738686,1766646643889,-150.0,0.00015342,2]
[399738687,1766646643899,-150.0,0.00015353,2]
[399738688,1766646643910,-172.12623375,0.00015356,2]
[399738689,1766646643920,-207.98052348,0.00015356,2]
[399738690,1766646643930,-299.35190735,0.00015356,2]
[399738691,1766646643942,-150.03943629,0.00015356,2]
[399738692,1766646643952,-150.0,0.00015358,2]
[399738693,1766646643963,-150.0,0.00015359,2]
[399738694,1766646643973,-150.0,0.0001536,2]
[399738695,1766646643984,-150.0,0.00015361,2]
[399738696,1766646643994,-150.0,0.00015373,2]
[399738697,1766646644005,-172.12623375,0.00015373,2]
[399738698,1766646644017,-207.98052348,0.00015373,2]
[399738699,1766646644027,-299.35190735,0.00015373,2]
[399738700,1766646644038,-150.03943629,0.00015373,2]
[399738701,1766646644049,-150.0,0.00015377,2]
[399738702,1766646644060,-150.0,0.00015379,2]
[399738703,1766646644070,-150.0,0.00015383,2]
[399738704,1766646644080,-150.0,0.00015385,2]
[399738705,1766646644092,-172.12623375,0.00015391,2]
[399738706,1766646644102,-207.98052348,0.00015391,2]
[399738707,1766646644113,-299.35190735,0.00015391,2]
[399738708,1766646644123,-150.03943629,0.00015391,2]
[399738709,1766646644134,-150.0,0.00015397,2]
[399738710,1766646644144,-150.0,0.00015407,2]
[399738711,1766646644155,-172.12623375,0.00015408,2]
[399738712,1766646644166,-207.98052348,0.00015408,2]
[399738713,1766646644176,-299.35190735,0.00015408,2]
[399738714,1766646644187,-150.03943629,0.00015408,2]
[399738715,1766646644197,-150.0,0.00015409,2]
[399738716,1766646644207,-150.0,0.00015415,2]
[399738717,1766646644218,-150.0,0.00015416,2]
[399738718,1766646644228,-150.0,0.00015418,2]
[399738719,1766646644237,-172.12623375,0.00015425,2]
[399738720,1766646644247,-207.98052348,0.00015425,2]
[399738721,1766646644271,-299.35190735,0.00015425,2]
[399738722,1766646644284,-150.03943629,0.00015425,2]
[399738723,1766646644295,-150.0,0.00015429,2]
[399738724,1766646644306,-150.0,0.00015431,2]
[399738725,1766646644317,-150.0,0.00015433,2]
[399738726,1766646644328,-150.0,0.00015434,2]
[399738727,1766646644339,-172.12623375,0.00015442,2]
[399738728,1766646644350,-207.98052348,0.00015442,2]
[399738729,1766646644360,-299.35190735,0.00015442,2]
[399738730,1766646644371,-150.03943629,0.00015442,2]
[399738731,1766646644382,-150.0,0.00015452,2]
[399738732,1766646644393,-243.0,0.00015453,2]
[399738733,1766646644404,-150.0,0.00015455,2]
[399738734,1766646644415,-150.0,0.00015458,2]
[399738735,1766646644426,-150.0,0.00015458,2]
[399738736,1766646644436,-172.12623375,0.00015459,2]
[399738737,1766646644447,-207.98052348,0.00015459,2]
[399738738,1766646644459,-299.35190735,0.00015459,2]
[399738739,1766646644470,-150.03943629,0.00015459,2]
[399738740,1766646644481,-150.0,0.00015466,2]
[399738741,1766646644497,-150.0,0.0001547,2]
[399738742,1766646644508,-172.12623375,0.00015476,2]
[399738743,1766646644519,-207.98052348,0.00015476,2]
[399738744,1766646644531,-299.35190735,0.00015476,2]
[399738745,1766646644542,-150.03943629,0.00015476,2]
[399738746,1766646644552,-150.0,0.00015476,2]
[399738747,1766646644563,-150.0,0.00015479,2]
[399738748,1766646644575,-150.0,0.00015482,2]
[399738749,1766646644585,-150.0,0.00015484,2]
[399738750,1766646644597,-150.0,0.00015489,2]
[399738751,1766646644607,-172.12623375,0.00015494,2]
[399738752,1766646644624,-207.98052348,0.00015494,2]
[399738753,1766646644635,-299.35190735,0.00015494,2]
[399738754,1766646644646,-150.03943629,0.00015494,2]
[399738755,1766646644657,-1002.0,0.00015494,2]
[399738756,1766646644667,-1152.0,0.00015494,2]
[399738757,1766646644678,-150.0,0.000155,2]
[399738758,1766646644689,-150.0,0.000155,2]
[399738759,1766646644701,-151.0,0.00015502,2]
[399738760,1766646644711,-33135.16061473,0.00015502,2]
[399738761,1766646644722,-150.0,0.00015503,2]
[399738762,1766646644733,-150.0,0.00015506,2]
[399738763,1766646644743,-150.0,0.00015507,2]
[399738764,1766646644754,-1698.19,0.0001551,2]
[399738765,1766646644764,-172.12623375,0.00015511,2]
[399738766,1766646644775,-207.98052348,0.00015511,2]
[399738767,1766646644786,-299.35190735,0.00015511,2]
[399738768,1766646644797,-150.03943629,0.00015511,2]
[399738769,1766646644807,-150.0,0.00015525,2]
[399738770,1766646644818,-150.0,0.00015527,2]
[399738771,1766646644829,-172.12623375,0.00015528,2]
[399738772,1766646644842,-207.98052348,0.00015528,2]
[399738773,1766646644852,-299.35190735,0.00015528,2]
[399738774,1766646644863,-150.03943629,0.00015528,2]
[399738775,1766646644874,-150.0,0.0001553,2]
[399738776,1766646644885,-4609.0,0.00015532,2]
[399738777,1766646644896,-150.0,0.00015542,2]
[399738778,1766646644907,-150.0,0.00015543,2]
[399738779,1766646644920,-172.12623375,0.00015545,2]
[399738780,1766646645071,-207.98052348,0.00015545,2]
[399738781,1766646645081,-299.35190735,0.00015545,2]
[399738782,1766646645092,-150.03943629,0.00015545,2]
[399738783,1766646645102,-150.0,0.00015549,2]
[399738784,1766646645111,-150.0,0.00015551,2]
[399738785,1766646645121,-150.0,0.00015555,2]
[399738786,1766646645136,-150.0,0.00015556,2]
[399738787,1766646645146,-150.0,0.00015562,2]
[399738788,1766646645156,-172.12623375,0.00015562,2]
[399738789,1766646645166,-207.98052348,0.00015562,2]
[399738790,1766646645176,-299.35190735,0.00015562,2]
[399738791,1766646645186,-150.03943629,0.00015562,2]
[399738792,1766646645196,-600.0,0.00015566,2]
[399738793,1766646645206,-600.0,0.00015566,2]
[399738794,1766646645217,-500.0,0.00015568,2]
[399738795,1766646645227,-500.0,0.00015568,2]
[399738796,1766646645237,-150.0,0.00015571,2]
[399738797,1766646645247,-150.0,0.00015571,2]
[399738798,1766646645257,-150.0,0.00015575,2]
[399738799,1766646645267,-150.0,0.00015579,2]
[399738800,1766646645278,-172.12623375,0.00015579,2]
[399738801,1766646645288,-207.98052348,0.00015579,2]
[399738802,1766646645297,-299.35190735,0.00015579,2]
[399738803,1766646645307,-150.03943629,0.00015579,2]
[399738804,1766646645317,-150.0,0.0001558,2]
[399738805,1766646645327,-3460.15864281,0.00015582,2]
[399738806,1766646645337,-150.0,0.00015585,2]
[399738807,1766646645348,-172.12623375,0.00015597,2]
[399738808,1766646645358,-207.98052348,0.00015597,2]
[399738809,1766646645367,-299.35190735,0.00015597,2]
[399738810,1766646645377,-150.03943629,0.00015597,2]
[399738811,1766646645386,-150.0,0.00015598,2]
[399738812,1766646645396,-150.0,0.00015599,2]
[399738813,1766646645406,-150.0,0.00015603,2]
[399738814,1766646645417,-172.12623375,0.00015614,2]
[399738815,1766646645427,-207.98052348,0.00015614,2]
[399738816,1766646645436,-299.35190735,0.00015614,2]
[399738817,1766646645446,-150.03943629,0.00015614,2]
[399738818,1766646645456,-150.0,0.00015614,2]
[399738819,1766646645466,-150.0,0.00015616,2]
[399738820,1766646645476,-150.0,0.00015623,2]
[399738821,1766646645486,-150.0,0.00015627,2]
[399738822,1766646645495,-150.0,0.00015627,2]
[399738823,1766646645509,-172.12623375,0.00015631,2]
[399738824,1766646645519,-207.98052348,0.00015631,2]
[399738826,1766646645529,-299.35190735,0.00015631,2]
[399738827,1766646645539,-150.03943629,0.00015631,2]
[399738828,1766646645549,-150.0,0.00015635,2]
[399738829,1766646645559,-150.0,0.00015642,2]
[399738830,1766646645570,-200.0,0.00015642,2]
[399738831,1766646645580,-500.0,0.00015642,2]
[399738832,1766646645591,-200.0,0.00015642,2]
[399738833,1766646645601,-151.0,0.00015642,2]
[399738834,1766646645611,-258.615269,0.00015642,2]
[399738835,1766646645621,-258.615269,0.00015642,2]
[399738836,1766646645632,-258.615269,0.00015642,2]
[399738837,1766646645642,-258.615269,0.00015642,2]
[399738838,1766646645653,-150.0,0.00015645,2]
[399738839,1766646645663,-150.0,0.00015647,2]
[399738840,1766646645673,-172.12623375,0.00015648,2]
[399738841,1766646645683,-207.98052348,0.00015648,2]
[399738842,1766646645697,-299.35190735,0.00015648,2]
[399738843,1766646645706,-150.03943629,0.00015648,2]
[399738844,1766646645716,-150.0,0.00015652,2]
[399738845,1766646645726,-150.0,0.00015653,2]
[399738846,1766646645737,-172.12623375,0.00015665,2]
[399738847,1766646645747,-207.98052348,0.00015665,2]
[399738848,1766646645757,-299.35190735,0.00015665,2]
[399738849,1766646645768,-150.03943629,0.00015665,2]
[399738850,1766646645778,-150.0,0.00015665,2]
[399738851,1766646645788,-150.0,0.0001567,2]
[399738852,1766646645798,-150.0,0.0001567,2]
[399738853,1766646645809,-150.0,0.00015671,2]
[399738854,1766646645818,-150.0,0.00015676,2]
[399738855,1766646645829,-253.89702326,0.00015678,2]
[399738856,1766646645839,-150.0,0.0001568,2]
[399738857,1766646645851,-172.12623375,0.00015682,2]
[399738858,1766646645861,-207.98052348,0.00015682,2]
[399738859,1766646645871,-299.35190735,0.00015682,2]
[399738860,1766646645882,-150.03943629,0.00015682,2]
[399738861,1766646645895,-150.0,0.00015689,2]
[399738862,1766646645905,-150.0,0.00015694,2]
[399738863,1766646645915,-172.12623375,0.00015699,2]
[399738864,1766646645926,-207.98052348,0.00015699,2]
[399738865,1766646645936,-299.35190735,0.00015699,2]
[399738866,1766646645946,-150.03943629,0.00015699,2]
[399738867,1766646645956,-150.0,0.000157,2]
[399738868,1766646645966,-150.0,0.00015708,2]
[399738869,1766646645977,-150.0,0.00015712,2]
[399738870,1766646645987,-150.0,0.00015712,2]
[399738871,1766646645996,-150.0,0.00015712,2]
[399738872,1766646646007,-172.12623375,0.00015717,2]
[399738873,1766646646018,-207.98052348,0.00015717,2]
[399738874,1766646646028,-299.35190735,0.00015717,2]
[399738875,1766646646038,-150.03943629,0.00015717,2]
[399738876,1766646646049,-150.0,0.00015718,2]
[399738877,1766646646059,-150.0,0.00015724,2]
[399738878,1766646646069,-150.0,0.00015726,2]
[399738879,1766646646079,-172.12623375,0.00015734,2]
[399738880,1766646646090,-207.98052348,0.00015734,2]
[399738881,1766646646100,-299.35190735,0.00015734,2]
[399738882,1766646646110,-150.03943629,0.00015734,2]
[399738883,1766646646120,-150.0,0.00015735,2]
[399738884,1766646646130,-150.0,0.00015742,2]
[399738885,1766646646140,-150.0,0.00015744,2]
[399738886,1766646646150,-150.0,0.00015745,2]
[399738887,1766646646160,-150.0,0.00015749,2]
[399738888,1766646646171,-172.12623375,0.00015751,2]
[399738889,1766646646181,-207.98052348,0.00015751,2]
[399738890,1766646646191,-299.35190735,0.00015751,2]
[399738891,1766646646201,-150.03943629,0.00015751,2]
[399738892,1766646646211,-150.0,0.00015755,2]
[399738893,1766646646222,-150.0,0.00015763,2]
[399738894,1766646646231,-150.0,0.00015766,2]
[399738895,1766646646241,-172.12623375,0.00015768,2]
[399738896,1766646646251,-207.98052348,0.00015768,2]
[399738897,1766646646260,-299.35190735,0.00015768,2]
[399738898,1766646646270,-150.03943629,0.00015768,2]
[399738899,1766646646280,-150.0,0.00015773,2]
[399738900,1766646646290,-150.0,0.00015781,2]
[399738901,1766646646300,-150.0,0.00015783,2]
[399738902,1766646646310,-1698.19,0.00015784,2]
[399738903,1766646646319,-172.12623375,0.00015785,2]
[399738904,1766646646328,-207.98052348,0.00015785,2]
[399738905,1766646646337,-299.35190735,0.00015785,2]
[399738906,1766646646348,-150.03943629,0.00015785,2]
[399738907,1766646646358,-150.0,0.0001579,2]
[399738908,1766646646367,-150.0,0.00015797,2]
[399738909,1766646646376,-150.0,0.00015797,2]
[399738910,1766646646386,-150.0,0.00015799,2]
[399738911,1766646646395,-172.12623375,0.00015802,2]
[399738912,1766646646404,-207.98052348,0.00015802,2]
[399738913,1766646646414,-299.35190735,0.00015802,2]
[399738914,1766646646424,-150.03943629,0.00015802,2]
[399738915,1766646646433,-150.0,0.0001581,2]
[399738916,1766646646443,-150.0,0.00015814,2]
[399738917,1766646646452,-150.0,0.00015817,2]
[399738918,1766646646462,-172.12623375,0.0001582,2]
[399738919,1766646646471,-207.98052348,0.0001582,2]
[399738920,1766646646481,-299.35190735,0.0001582,2]
[399738921,1766646646495,-150.03943629,0.0001582,2]
[399738922,1766646646504,-150.0,0.00015822,2]
[399738923,1766646646514,-150.0,0.00015824,2]
[399738924,1766646646524,-150.0,0.00015836,2]
[399738925,1766646646534,-172.12623375,0.00015837,2]
[399738926,1766646646544,-207.98052348,0.00015837,2]
[399738927,1766646646554,-299.35190735,0.00015837,2]
[399738928,1766646646564,-150.03943629,0.00015837,2]
[399738929,1766646646574,-150.0,0.00015838,2]
[399738930,1766646646584,-150.0,0.0001584,2]
[399738931,1766646646593,-150.0,0.00015846,2]
[399738932,1766646646603,-172.12623375,0.00015854,2]
[399738933,1766646646612,-207.98052348,0.00015854,2]
[399738934,1766646646623,-150.0,0.00015854,2]
[399738935,1766646646632,-299.35190735,0.00015854,2]
[399738936,1766646646642,-150.03943629,0.00015854,2]
[399738937,1766646646652,-150.0,0.00015854,2]
[399738938,1766646646662,-150.0,0.00015854,2]
[399738939,1766646646672,-150.0,0.00015854,2]
[399738940,1766646646682,-150.0,0.00015862,2]
[399738941,1766646646692,-263.044645,0.00015862,2]
[399738942,1766646646704,-766.470861,0.00015862,2]
[399738943,1766646646713,-766.470861,0.00015862,2]
[399738944,1766646646723,-766.470861,0.00015862,2]
[399738945,1766646646733,-766.470861,0.00015862,2]
[399738946,1766646646743,-150.0,0.0001587,2]
[399738947,1766646646753,-172.12623375,0.00015871,2]
[399738948,1766646646763,-207.98052348,0.00015871,2]
[399738949,1766646646772,-299.35190735,0.00015871,2]
[399738950,1766646646783,-150.03943629,0.00015871,2]
[399738951,1766646646793,-150.0,0.00015872,2]
[399738952,1766646646803,-150.0,0.00015876,2]
[399738953,1766646646812,-150.0,0.00015882,2]
[399738954,1766646646822,-150.0,0.00015886,2]
[399738955,1766646646831,-172.12623375,0.00015888,2]
[399738956,1766646646842,-207.98052348,0.00015888,2]
[399738957,1766646646852,-299.35190735,0.00015888,2]
[399738958,1766646646863,-150.03943629,0.00015888,2]
[399738959,1766646646872,-150.0,0.0001589,2]
[399738960,1766646646883,-150.0,0.00015894,2]
[399738961,1766646646892,-172.12623375,0.00015905,2]
[399738962,1766646646902,-207.98052348,0.00015905,2]
[399738963,1766646646912,-299.35190735,0.00015905,2]
[399738964,1766646646922,-150.03943629,0.00015905,2]
[399738965,1766646646932,-150.0,0.00015909,2]
[399738966,1766646646948,-150.0,0.0001591,2]
[399738967,1766646646958,-150.0,0.00015913,2]
[399738968,1766646646968,-150.0,0.00015919,2]
[399738969,1766646646978,-172.12623375,0.00015923,2]
[399738970,1766646646987,-207.98052348,0.00015923,2]
[399738971,1766646646997,-299.35190735,0.00015923,2]
[399738972,1766646647008,-150.03943629,0.00015923,2]
[399738973,1766646647018,-150.0,0.00015925,2]
[399738974,1766646647028,-150.0,0.00015925,2]
[399738975,1766646647038,-150.0,0.00015927,2]
[399738976,1766646647048,-150.0,0.00015934,2]
[399738977,1766646647058,-172.12623375,0.0001594,2]
[399738978,1766646647068,-207.98052348,0.0001594,2]
[399738979,1766646647079,-299.35190735,0.0001594,2]
[399738980,1766646647090,-150.03943629,0.0001594,2]
[399738981,1766646647101,-150.0,0.00015941,2]
[399738982,1766646647110,-150.0,0.00015943,2]
[399738983,1766646647120,-150.0,0.00015945,2]
[399738984,1766646647131,-172.12623375,0.00015957,2]
[399738985,1766646647141,-207.98052348,0.00015957,2]
[399738986,1766646647151,-299.35190735,0.00015957,2]
[399738987,1766646647161,-150.03943629,0.00015957,2]
[399738988,1766646647171,-150.0,0.00015958,2]
[399738989,1766646647182,-150.0,0.00015963,2]
[399738990,1766646647191,-150.0,0.00015967,2]
[399738991,1766646647201,-150.0,0.00015967,2]
[399738992,1766646647211,-172.12623375,0.00015974,2]
[399738993,1766646647221,-207.98052348,0.00015974,2]
[399738994,1766646647231,-299.35190735,0.00015974,2]
[399738995,1766646647240,-150.03943629,0.00015974,2]
[399738996,1766646647251,-150.0,0.00015981,2]
[399738997,1766646647261,-150.0,0.00015982,2]
[399738998,1766646647270,-172.12623375,0.00015991,2]
[399738999,1766646647280,-207.98052348,0.00015991,2]
[399739000,1766646647290,-299.35190735,0.00015991,2]
[399739001,1766646647300,-150.03943629,0.00015991,2]
[399739002,1766646647310,-150.0,0.00015991,2]
[399739003,1766646647320,-150.0,0.00015995,2]
[399739004,1766646647330,-150.0,0.00016,2]
[399739005,1766646647339,-1000.0,0.00016,2]
[399739006,1766646647350,-1000.0,0.00016,2]
[399739007,1766646647359,-1000.0,0.00016,2]
[399739008,1766646647369,-650.434,0.00016,2]
[399739009,1766646647378,-150.0,0.00016003,2]
[399739010,1766646647389,-150.0,0.00016005,2]
[399739011,1766646647398,-150.0,0.00016006,2]
[399739012,1766646647407,-172.12623375,0.00016008,2]
[399739013,1766646647417,-207.98052348,0.00016008,2]
[399739014,1766646647427,-299.35190735,0.00016008,2]
[399739015,1766646647437,-150.03943629,0.00016008,2]
[399739016,1766646647446,-150.0,0.0001601,2]
[399739017,1766646647456,-150.0,0.00016016,2]
[399739018,1766646647466,-150.0,0.00016018,2]
[399739019,1766646647475,-3460.15864281,0.00016021,2]
[399739020,1766646647487,-172.12623375,0.00016025,2]
[399739021,1766646647502,-207.98052348,0.00016025,2]
[399739022,1766646647511,-299.35190735,0.00016025,2]
[399739023,1766646647522,-150.03943629,0.00016025,2]
[399739024,1766646647532,-150.0,0.00016029,2]
[399739025,1766646647542,-150.0,0.00016037,2]
[399739026,1766646647551,-150.0,0.0001604,2]
[399739027,1766646647561,-172.12623375,0.00016043,2]
[399739028,1766646647571,-207.98052348,0.00016043,2]
[399739029,1766646647580,-299.35190735,0.00016043,2]
[399739030,1766646647591,-150.03943629,0.00016043,2]
[399739031,1766646647601,-150.0,0.00016043,2]
[399739032,1766646647611,-150.0,0.00016052,2]
[399739033,1766646647621,-150.0,0.00016053,2]
[399739034,1766646647631,-150.0,0.00016055,2]
[399739036,1766646647640,-359.76179104,0.00016055,2]
[399739037,1766646647650,-309.29654756,0.00016055,2]
[399739038,1766646647660,-1698.19,0.00016058,2]
[399739039,1766646647670,-172.12623375,0.0001606,2]
[399739040,1766646647679,-207.98052348,0.0001606,2]
[399739041,1766646647688,-299.35190735,0.0001606,2]
[399739042,1766646647699,-150.03943629,0.0001606,2]
[399739043,1766646647709,-150.0,0.00016064,2]
[399739044,1766646647719,-150.0,0.00016066,2]
[399739045,1766646647728,-150.0,0.00016072,2]
[399739046,1766646647738,-150.0,0.00016073,2]
[399739047,1766646647748,-172.12623375,0.00016077,2]
[399739048,1766646647757,-207.98052348,0.00016077,2]
[399739049,1766646647767,-299.35190735,0.00016077,2]
[399739050,1766646647777,-150.03943629,0.00016077,2]
[399739051,1766646647787,-150.0,0.00016077,2]
[399739052,1766646647797,-150.0,0.00016088,2]
[399739053,1766646647807,-150.0,0.00016091,2]
[399739054,1766646647817,-150.0,0.00016092,2]
[399739055,1766646647826,-172.12623375,0.00016094,2]
[399739056,1766646647836,-207.98052348,0.00016094,2]
[399739057,1766646647846,-299.35190735,0.00016094,2]
[399739058,1766646647856,-150.03943629,0.00016094,2]
[399739059,1766646647866,-150.0,0.00016095,2]
[399739060,1766646647876,-150.0,0.00016101,2]
[399739061,1766646647886,-150.0,0.0001611,2]
[399739062,1766646647897,-172.12623375,0.00016111,2]
[399739063,1766646647908,-207.98052348,0.00016111,2]
[399739064,1766646647919,-299.35190735,0.00016111,2]
[399739065,1766646647929,-150.03943629,0.00016111,2]
[399739066,1766646647940,-150.0,0.00016113,2]
[399739067,1766646647950,-9999.99,0.00016116,2]
[399739068,1766646647960,-539.25,0.00016121,2]
[399739069,1766646647971,-150.0,0.00016125,2]
[399739070,1766646647981,-150.0,0.00016128,2]
[399739071,1766646647991,-172.12623375,0.00016128,2]
[399739072,1766646648002,-207.98052348,0.00016128,2]
[399739073,1766646648012,-299.35190735,0.00016128,2]
[399739074,1766646648022,-150.03943629,0.00016128,2]